bitfinex/quotes_SOLUSD_20250904
["timestamp","ask_amount","ask_price","bid_price","bid_amount"]
[1756988386596,2.66429925,208.11,208.1,0.72]
[1756988386798,2.66429925,208.11,208.09,0.12]
[1756988387410,38.22,208.12,208.1,0.72]
[1756988387612,2.66429925,208.12,208.11,0.72]
[1756988387809,40.88429925,208.12,208.11,0.72]
[1756988388687,26.0,208.13,208.11,0.72]
[1756988388906,26.0,208.11,208.09,0.12]
[1756988389108,2.66429925,208.1,208.09,0.12]
[1756988389315,40.88429925,208.1,208.09,0.12]
[1756988389610,65.85709026,208.1,208.09,0.12]
[1756988389795,69.42131912,208.1,208.09,0.12]
[1756988390913,69.94247228,208.1,208.09,0.12]
[1756988391214,73.50753304,208.1,208.09,0.12]
[1756988391388,74.22753304,208.1,208.09,0.12]
[1756988392912,73.50753304,208.1,208.09,0.12]
[1756988393113,74.22753304,208.1,208.09,0.12]
[1756988393313,74.51185618,208.1,208.09,0.12]
[1756988393823,73.50753304,208.1,208.09,0.12]
[1756988394724,74.22753304,208.1,208.09,0.12]
[1756988394912,39.59559401,208.07,208.06,0.1]
[1756988395116,84.04495402,208.07,208.06,0.1]
[1756988395512,88.85314384,208.07,208.06,0.1]
[1756988395925,50.63314384,208.07,208.06,0.1]
[1756988396311,88.85314384,208.07,208.06,0.1]
[1756988396514,88.86185472,208.07,208.06,0.1]
[1756988397114,93.66792959,208.07,208.06,0.1]
[1756988397539,91.00363034,208.07,208.06,0.1]
[1756988397708,93.66792959,208.07,208.06,0.1]
[1756988399324,94.38792959,208.07,208.06,0.1]
[1756988400420,93.66792959,208.07,208.06,0.1]
[1756988400625,52.78363034,208.07,208.06,0.82]
[1756988400936,93.66792959,208.07,208.06,0.1]
[1756988401437,91.72363034,208.07,208.06,0.1]
[1756988401611,94.38792959,208.07,208.06,0.1]
[1756988402216,13.59559401,208.06,208.04,0.12]
[1756988402441,44.45807089,208.05,208.04,0.12]
[1756988402912,49.36720229,208.05,208.04,0.12]
[1756988403115,50.08720229,208.05,208.04,0.12]
[1756988403320,26.0,208.01,207.98,0.72]
[1756988403619,41.79377164,208.0,207.98,0.72]
[1756988403818,6.23807089,207.99,207.98,0.72]
[1756988404015,6.23807089,207.99,207.93,7.57360852]
[1756988404210,3.57377164,207.98,207.93,7.57360852]
[1756988404531,2.66429925,207.96,207.94,0.72]
[1756988404731,26.0,208.01,207.94,0.72]
[1756988404908,18.40501665,208.02,207.95,2.66429925]
[1756988404909,26.0,207.99,207.95,2.66429925]
[1756988405234,6.24375245,207.98,207.96,0.72]
[1756988405429,3.5794532,207.97,207.96,0.72]
[1756988405810,6.24375245,207.97,207.96,0.72]
[1756988406010,11.05213827,207.97,207.96,0.72]
[1756988407328,49.27213827,207.97,207.93,0.82]
[1756988407651,28.66429925,207.94,207.93,0.1]
[1756988407809,84.05934646,207.94,207.93,0.1]
[1756988408011,99.87295493,207.94,207.93,0.1]
[1756988408247,96.08937022,207.94,207.93,0.1]
[1756988408736,96.80937022,207.94,207.93,0.1]
[1756988409443,105.53537836,207.94,207.93,0.1]
[1756988409742,26.0,207.87,207.86,0.72]
[1756988409923,26.0,207.87,207.85,0.1]
[1756988409924,70.46375245,207.87,207.85,0.1]
[1756988410127,2.66429925,207.86,207.85,0.1]
[1756988410726,6.23740065,207.86,207.85,0.1]
[1756988410938,6.23740065,207.86,207.85,0.82]
[1756988411133,44.45740065,207.86,207.85,0.1]
[1756988411332,62.86392509,207.86,207.85,0.1]
[1756988411535,64.37279067,207.86,207.85,0.1]
[1756988411937,26.15279067,207.86,207.85,0.1]
[1756988412142,64.37279067,207.86,207.85,0.82]
[1756988412322,59.56186024,207.86,207.85,0.76]
[1756988412522,21.34186024,207.86,207.85,0.76]
[1756988412734,64.37279067,207.86,207.85,0.76]
[1756988412943,60.19962584,207.86,207.85,0.1]
[1756988413253,55.40869541,207.86,207.85,0.1]
[1756988413443,64.39279067,207.86,207.85,0.1]
[1756988414136,64.39279067,207.86,207.85,0.76]
[1756988414525,26.15279067,207.86,207.85,0.76]
[1756988414849,64.39279067,207.86,207.85,0.76]
[1756988415025,64.39279067,207.86,207.85,0.1]
[1756988416142,3.5731014,207.86,207.85,0.1]
[1756988416322,42.41316483,207.86,207.85,0.1]
[1756988416523,60.81968927,207.86,207.85,0.1]
[1756988416718,64.37645119,207.86,207.85,0.1]
[1756988417733,65.03645119,207.86,207.85,0.1]
[1756988418752,26.79645119,207.86,207.85,0.1]
[1756988418950,65.03645119,207.86,207.85,0.1]
[1756988420123,77.34810041,207.86,207.82,0.12]
[1756988420331,43.76875884,207.83,207.82,0.12]
[1756988420534,85.56552076,207.83,207.82,0.12]
[1756988420738,86.22552076,207.83,207.82,0.12]
[1756988421353,13.59559401,207.82,207.8,0.12]
[1756988421532,26.0,207.74,207.72,0.66]
[1756988421729,4.17316483,207.73,207.68,4.81488988]
[1756988421950,4.17316483,207.72,207.67,8.9884572]
[1756988422154,64.24,207.74,207.67,4.81529237]
[1756988422368,64.24,207.74,207.64,0.1]
[1756988422369,4.17316483,207.71,207.68,0.66]
[1756988422655,4.17316483,207.7,207.69,0.66]
[1756988422843,38.24,207.71,207.69,0.66]
[1756988423159,4.17316483,207.7,207.69,0.66]
[1756988423942,38.26,207.71,207.69,0.66]
[1756988424145,4.17316483,207.7,207.69,0.66]
[1756988424339,38.26,207.71,207.65,4.17316483]
[1756988424340,42.43316483,207.71,207.65,4.17316483]
[1756988424525,30.17316483,207.71,207.64,4.91598804]
[1756988424730,30.17316483,207.71,207.64,0.1]
[1756988424731,4.17316483,207.69,207.64,0.1]
[1756988424931,4.17316483,207.68,207.65,0.66]
[1756988425134,26.0,207.71,207.65,0.66]
[1756988425346,4.17316483,207.68,207.65,0.66]
[1756988425527,4.17316483,207.68,207.66,0.66]
[1756988425854,38.26,207.68,207.67,0.66]
[1756988426032,42.43316483,207.68,207.65,0.66]
[1756988426234,42.43316483,207.68,207.64,0.1]
[1756988426235,4.17316483,207.66,207.64,0.1]
[1756988426448,42.43316483,207.66,207.64,0.76]
[1756988426651,4.17316483,207.65,207.64,0.1]
[1756988426834,26.0,207.66,207.64,0.1]
[1756988427155,38.26,207.66,207.64,0.76]
[1756988427460,26.0,207.67,207.64,4.27316483]
[1756988427646,26.0,207.67,207.64,0.1]
[1756988427843,26.0,207.67,207.65,0.66]
[1756988428040,26.0,207.67,207.66,0.66]
[1756988428246,26.0,207.69,207.66,4.83316483]
[1756988428440,26.0,207.69,207.67,0.66]
[1756988428961,26.0,207.69,207.68,0.66]
[1756988430262,38.26,207.71,207.68,5.47500307]
[1756988430466,38.26,207.71,207.69,0.66]
[1756988430666,42.43316483,207.72,207.68,4.81500307]
[1756988430853,68.43316483,207.72,207.67,8.98846043]
[1756988431054,26.0,207.72,207.67,4.8152956]
[1756988431246,0.66,207.8,207.71,4.17316483]
[1756988431440,13.59559401,207.76,207.71,4.83316483]
[1756988431641,13.59559401,207.76,207.67,4.8152956]
[1756988431642,38.26,207.75,207.7,8.9876532]
[1756988431847,5.47208796,207.81,207.73,4.17316483]
[1756988432039,4.17316483,207.77,207.72,0.66]
[1756988432253,4.17316483,207.73,207.65,4.81579581]
[1756988432556,64.92,207.76,207.68,0.66]
[1756988432557,4.17316483,207.72,207.68,0.66]
[1756988432758,13.59559401,207.75,207.69,4.83316483]
[1756988432959,4.17316483,207.74,207.7,0.66]
[1756988433150,4.17316483,207.74,207.71,0.66]
[1756988433338,13.59559401,207.75,207.71,0.66]
[1756988433537,26.0,207.76,207.73,4.17316483]
[1756988433845,13.59559401,207.79,207.74,4.83316483]
[1756988433846,4.17316483,207.79,207.74,4.83316483]
[1756988434049,4.17316483,207.79,207.73,4.17316483]
[1756988434050,4.17316483,207.78,207.73,4.17316483]
[1756988434253,4.17316483,207.77,207.74,0.66]
[1756988434646,4.17316483,207.75,207.68,0.66]
[1756988434850,4.17316483,207.73,207.68,4.83316483]
[1756988435169,26.0,207.72,207.69,0.66]
[1756988435341,30.17316483,207.73,207.69,0.66]
[1756988435658,4.17316483,207.73,207.69,0.66]
[1756988435860,30.17316483,207.73,207.68,4.81491701]
[1756988436169,4.17316483,207.72,207.68,0.66]
[1756988436540,30.8139432,207.73,207.69,0.66]
[1756988436741,4.17316483,207.71,207.67,0.12]
[1756988436959,4.17316483,207.7,207.67,0.12]
[1756988437265,4.17316483,207.7,207.68,0.66]
[1756988437465,24.17316483,207.69,207.62,0.66]
[1756988437649,20.0,207.67,207.62,4.83316483]
[1756988437961,14.47562064,207.71,207.66,4.17316483]
[1756988438151,20.0,207.72,207.7,4.17316483]
[1756988439045,20.0,207.72,207.71,4.83316483]
[1756988439662,20.0,207.75,207.72,4.81417292]
[1756988439884,20.0,207.77,207.74,4.17316483]
[1756988440172,20.0,207.77,207.75,4.17316483]
[1756988440760,38.28,207.8,207.76,4.83316483]
[1756988440965,20.0,207.79,207.77,4.17316483]
[1756988441462,38.28,207.8,207.76,0.66]
[1756988441762,38.28,207.8,207.77,15.47079337]
[1756988442060,84.26,207.81,207.78,10.65777898]
[1756988442568,20.0,207.81,207.78,10.65777898]
[1756988442862,20.0,207.81,207.79,10.65777898]
[1756988443039,20.0,207.81,207.76,10.65777898]
[1756988443244,30.65777898,207.79,207.73,0.65]
[1756988443444,20.0,207.77,207.73,11.30777898]
[1756988443760,20.0,207.77,207.73,15.47153249]
[1756988443973,20.0,207.75,207.72,10.65777898]
[1756988444546,20.0,207.75,207.72,15.4719362]
[1756988445071,20.0,207.75,207.72,16.1219362]
[1756988445371,20.0,207.75,207.72,5.46415722]
[1756988445550,20.0,207.75,207.73,10.65777898]
[1756988445953,20.0,207.75,207.71,10.65777898]
[1756988446142,30.65777898,207.75,207.68,4.81510015]
[1756988446342,10.65777898,207.74,207.69,10.65777898]
[1756988446559,20.0,207.75,207.69,10.65777898]
[1756988446560,20.0,207.75,207.71,10.65777898]
[1756988446967,20.0,207.75,207.7,10.65777898]
[1756988447359,20.0,207.75,207.71,10.65777898]
[1756988447549,20.0,207.75,207.7,0.65]
[1756988447750,20.0,207.75,207.71,10.65777898]
[1756988448157,20.0,207.75,207.71,15.47203526]
[1756988448566,20.0,207.75,207.71,4.81425628]
[1756988448855,26.0,207.77,207.74,10.65777898]
[1756988449053,58.26,207.79,207.76,10.65777898]
[1756988449267,20.0,207.77,207.76,10.65777898]
[1756988449768,38.26,207.79,207.76,11.30777898]
[1756988449969,38.26,207.79,207.77,0.65]
[1756988450177,58.26,207.79,207.78,10.65777898]
[1756988450364,61.81274123,207.79,207.78,15.47056173]
[1756988450570,41.81274123,207.79,207.77,15.47078555]
[1756988450877,20.0,207.79,207.77,15.47078555]
[1756988451269,20.0,207.81,207.77,4.81300657]
[1756988451471,20.0,207.81,207.8,10.65777898]
[1756988451669,3.55507444,207.81,207.8,10.65777898]
[1756988451961,20.0,207.83,207.77,16.84554254]
[1756988452163,58.26,207.85,207.83,4.81162488]
[1756988452377,3.55880612,207.84,207.82,4.81184302]
[1756988452694,3.55880612,207.83,207.81,10.65777898]
[1756988452852,3.55880612,207.82,207.75,0.28432314]
[1756988453054,58.26,207.85,207.81,10.65777898]
[1756988453252,74.42896907,207.85,207.8,10.65777898]
[1756988453565,20.0,207.82,207.78,10.65777898]
[1756988453881,84.28,207.82,207.77,10.65777898]
[1756988454189,20.0,207.8,207.77,15.47077186]
[1756988454486,20.0,207.78,207.75,10.65777898]
[1756988454656,20.0,207.78,207.74,10.65777898]
[1756988455185,20.0,207.8,207.76,10.65777898]
[1756988455358,20.0,207.8,207.77,10.65777898]
[1756988455557,58.3,207.84,207.79,10.65777898]
[1756988455773,58.28,207.86,207.82,10.65777898]
[1756988455982,58.28,207.86,207.84,10.65777898]
[1756988455983,20.0,207.86,207.84,10.65777898]
[1756988456156,20.0,207.86,207.82,10.65777898]
[1756988456363,20.0,207.86,207.82,15.46958441]
[1756988456561,20.0,207.86,207.83,10.65777898]
[1756988457481,20.0,207.86,207.84,10.65777898]
[1756988457782,20.0,207.86,207.85,10.65777898]
[1756988458663,20.0,207.86,207.85,0.65]
[1756988458976,26.0,207.88,207.85,11.30777898]
[1756988459161,26.0,207.88,207.87,10.65777898]
[1756988460387,20.0,207.91,207.87,10.65777898]
[1756988460588,0.7,207.9,207.85,10.65777898]
[1756988460765,0.7,207.9,207.83,4.81161466]
[1756988460766,31.35777898,207.89,207.83,4.81161466]
[1756988460973,20.0,207.87,207.83,15.46939364]
[1756988461162,20.0,207.87,207.83,10.65777898]
[1756988461489,20.7,207.87,207.83,10.65777898]
[1756988461671,0.7,207.86,207.81,0.65]
[1756988461871,49.61777898,207.86,207.78,4.81278275]
[1756988462069,38.96,207.86,207.81,10.65777898]
[1756988462300,20.0,207.84,207.8,10.65777898]
[1756988462658,20.0,207.84,207.81,0.65]
[1756988462867,20.0,207.84,207.81,11.30777898]
[1756988463187,20.0,207.84,207.78,5.46274772]
[1756988463364,20.0,207.82,207.78,16.1205267]
[1756988463758,20.0,207.82,207.78,10.65777898]
[1756988463991,0.7,207.81,207.77,10.65777898]
[1756988464299,68.91777898,207.82,207.77,10.65777898]
[1756988464500,58.26,207.82,207.78,10.65777898]
[1756988464792,20.0,207.84,207.81,10.65777898]
[1756988464998,20.0,207.84,207.83,10.65777898]
[1756988465164,38.26,207.86,207.83,11.30777898]
[1756988465165,58.26,207.86,207.83,11.30777898]
[1756988465370,58.26,207.86,207.83,10.65777898]
[1756988465565,20.0,207.86,207.85,10.65777898]
[1756988465775,20.0,207.9,207.85,11.30777898]
[1756988465973,46.0,207.9,207.89,10.65777898]
[1756988466371,46.7,207.9,207.87,10.65777898]
[1756988466572,46.0,207.9,207.87,10.65777898]
[1756988466892,20.0,207.88,207.86,10.65777898]
[1756988467483,58.26,207.9,207.87,11.30777898]
[1756988467668,58.26,207.9,207.88,10.65777898]
[1756988468072,20.0,207.9,207.87,0.65]
[1756988468271,20.0,207.9,207.89,10.65777898]
[1756988468473,0.03,207.93,207.89,16.11801516]
[1756988468698,0.03,207.93,207.92,10.65777898]
[1756988469372,0.03,207.93,207.91,10.65777898]
[1756988469775,0.73,207.93,207.86,5.46093043]
[1756988469965,0.03,207.93,207.9,10.65777898]
[1756988470171,0.03,207.93,207.91,10.65777898]
[1756988470783,0.03,207.93,207.84,0.28432314]
[1756988471000,30.65777898,207.92,207.87,10.65777898]
[1756988471289,0.7,207.91,207.87,10.65777898]
[1756988471477,20.7,207.9,207.84,4.81135683]
[1756988471864,20.7,207.9,207.83,16.11937869]
[1756988471865,20.0,207.88,207.83,16.11937869]
[1756988472064,20.0,207.88,207.83,11.30777898]
[1756988472276,30.65777898,207.88,207.83,11.30777898]
[1756988472688,20.0,207.88,207.83,16.11933876]
[1756988473570,20.0,207.88,207.84,7.37387091]
[1756988473780,20.0,207.88,207.86,6.67387091]
[1756988473985,20.0,207.9,207.87,7.37387091]
[1756988474189,20.03,207.93,207.89,6.67387091]
[1756988474362,20.03,207.93,207.86,4.81093043]
[1756988474567,25.52936911,207.93,207.87,0.7]
[1756988474775,31.51324002,207.93,207.87,6.67387091]
[1756988474968,0.69,207.92,207.87,6.67387091]
[1756988475174,26.70387091,207.93,207.88,7.37387091]
[1756988475363,27.39387091,207.93,207.88,7.37387091]
[1756988475576,24.83935057,207.93,207.89,6.67387091]
[1756988475781,20.0,207.91,207.88,6.67387091]
[1756988475974,20.69,207.91,207.85,4.81110707]
[1756988476175,20.69,207.91,207.87,6.67387091]
[1756988476481,20.0,207.91,207.87,0.7]
[1756988476688,20.0,207.91,207.89,6.67387091]
[1756988477192,20.0,207.89,207.83,0.7]
[1756988477398,20.0,207.87,207.84,6.67387091]
[1756988477975,20.69,207.87,207.82,6.67387091]
[1756988478500,20.0,207.85,207.79,0.7]
[1756988478791,20.0,207.85,207.82,6.67387091]
[1756988479575,20.0,207.85,207.82,7.37387091]
[1756988479773,20.0,207.85,207.78,4.81278275]
[1756988480086,20.0,207.85,207.82,6.67387091]
[1756988480499,20.0,207.85,207.8,5.5121015]
[1756988480696,20.0,207.85,207.81,7.37387091]
[1756988480878,58.24,207.87,207.83,6.67387091]
[1756988481198,20.0,207.89,207.86,6.67387091]
[1756988481398,20.0,207.89,207.8,16.84290034]
[1756988481399,20.0,207.89,207.87,0.7]
[1756988481610,20.0,207.89,207.85,6.67387091]
[1756988481788,7.36387091,207.88,207.83,6.67387091]
[1756988482093,20.0,207.86,207.82,7.37387091]
[1756988482394,20.0,207.86,207.83,6.67387091]
[1756988483187,20.0,207.86,207.82,6.67387091]
[1756988483383,0.69,207.85,207.79,4.81255113]
[1756988483591,20.0,207.84,207.8,6.67387091]
[1756988484601,20.0,207.84,207.81,6.67387091]
[1756988485898,20.0,207.87,207.81,11.48592796]
[1756988486080,4.00543613,207.99,207.81,11.48592796]
[1756988486081,20.0,207.91,207.86,6.67387091]
[1756988486285,20.0,207.91,207.9,6.67387091]
[1756988486595,20.0,207.91,207.88,6.67387091]
[1756988486781,46.69,207.91,207.88,6.67387091]
[1756988486989,46.0,207.91,207.88,11.48422579]
[1756988487792,46.0,207.91,207.88,6.67387091]
[1756988488588,20.0,207.89,207.83,0.7]
[1756988488797,0.69,207.88,207.81,4.81208796]
[1756988488983,26.67387091,207.87,207.82,7.37387091]
[1756988489188,27.36387091,207.87,207.82,7.37387091]
[1756988489390,20.0,207.87,207.83,6.67387091]
[1756988489712,20.0,207.89,207.85,6.67387091]
[1756988489875,20.0,207.87,207.85,6.67387091]
[1756988490075,20.0,207.87,207.81,5.51208796]
[1756988490601,20.0,207.87,207.83,6.67387091]
[1756988490813,20.0,207.87,207.83,4.81145342]
[1756988490989,27.36387091,207.87,207.82,11.48567005]
[1756988491196,31.48460716,207.87,207.81,7.37387091]
[1756988491515,32.17460716,207.87,207.81,7.37387091]
[1756988491684,25.50073625,207.87,207.81,12.1858695]
[1756988492008,20.0,207.85,207.81,6.67387091]
[1756988492193,20.0,207.85,207.8,11.48615505]
[1756988492391,20.0,207.85,207.8,12.18615505]
[1756988492602,20.0,207.85,207.81,6.67387091]
[1756988492801,46.0,207.87,207.84,6.67387091]
[1756988493205,20.0,207.87,207.84,6.67387091]
[1756988493515,20.0,207.87,207.83,4.81162488]
[1756988493516,20.0,207.89,207.86,6.67387091]
[1756988494195,20.03,207.93,207.88,6.67387091]
[1756988494387,20.03,207.93,207.92,6.67387091]
[1756988494886,0.03,207.93,207.92,11.48341304]
[1756988495395,0.03,207.93,207.92,12.18341304]
[1756988495994,0.03,207.93,207.92,11.48341304]
[1756988497096,0.03,207.93,207.92,12.18341304]
[1756988497814,0.03,207.93,207.92,5.79386527]
[1756988498109,0.03,207.93,207.92,11.48341304]
[1756988498504,0.03,207.93,207.91,11.48362535]
[1756988499512,0.03,207.93,207.92,6.67387091]
[1756988500598,0.03,207.93,207.91,6.67387091]
[1756988500787,0.03,207.93,207.92,6.67387091]
[1756988500983,0.03,207.93,207.92,7.37387091]
[1756988501188,0.03,207.93,207.92,6.67387091]
[1756988501403,0.03,207.93,207.9,4.81000481]
[1756988501596,20.03,207.93,207.9,11.48387572]
[1756988502001,20.03,207.93,207.9,6.67387091]
[1756988502200,20.03,207.93,207.88,11.4841191]
[1756988502201,0.69,207.92,207.88,11.4841191]
[1756988502513,27.36387091,207.91,207.85,11.4850328]
[1756988503910,26.67387091,207.91,207.86,7.33387091]
[1756988504086,20.0,207.91,207.87,7.33387091]
[1756988504290,20.0,207.91,207.88,6.67387091]
[1756988504490,20.0,207.91,207.88,7.33387091]
[1756988505002,0.03,207.91,207.9,6.67387091]
[1756988505486,0.03,207.91,207.9,7.61819405]
[1756988505700,0.03,207.91,207.9,12.42819886]
[1756988506203,0.03,207.91,207.9,5.75432795]
[1756988506405,0.03,207.91,207.9,12.42819886]
[1756988506721,0.03,207.91,207.9,12.14387572]
[1756988507514,0.03,207.91,207.9,11.48387572]
[1756988508119,0.03,207.91,207.9,12.14387572]
[1756988508492,0.03,207.91,207.9,12.28603729]
[1756988508689,0.03,207.91,207.9,12.42819886]
[1756988509598,0.03,207.91,207.9,12.90919934]
[1756988511007,0.03,207.91,207.9,12.42819886]
[1756988511815,1e-08,207.93,207.9,12.42819886]
[1756988511999,0.2,208.01,207.93,13.87991715]
[1756988512205,0.2,208.01,207.97,6.95819405]
[1756988512516,0.89,208.01,207.94,0.94432314]
[1756988512708,0.89,208.01,207.97,6.67387091]
[1756988513017,0.2,208.01,207.97,6.95819405]
[1756988513191,0.2,208.01,207.97,7.61819405]
[1756988514014,0.2,208.01,207.97,12.42657987]
[1756988514717,0.2,208.01,207.97,4.80838582]
[1756988514934,0.89,208.01,207.97,4.80838582]
[1756988515122,0.89,208.01,207.97,11.48225673]
[1756988516315,0.2,208.01,207.97,4.80838582]
[1756988516517,0.69,208.0,207.97,6.67387091]
[1756988516721,26.87387091,208.01,207.95,4.80884828]
[1756988517020,0.72,207.98,207.95,6.67387091]
[1756988517217,0.72,207.98,207.96,6.67387091]
[1756988517622,0.03,207.98,207.96,6.67387091]
[1756988517805,0.03,207.98,207.97,6.67387091]
[1756988518315,0.03,207.98,207.97,11.48225673]
[1756988519424,0.03,207.98,207.97,12.14225673]
[1756988520012,0.03,207.98,207.97,5.46838582]
[1756988520309,0.03,207.98,207.97,12.14225673]
[1756988522030,0.03,207.98,207.97,51.10657987]
[1756988522397,0.03,207.98,207.97,44.43270896]
[1756988522598,0.03,207.98,207.97,51.10657987]
[1756988523222,0.03,207.98,207.97,51.08657987]
[1756988523624,0.03,207.98,207.97,51.56741845]
[1756988524022,0.03,207.98,207.97,51.08657987]
[1756988526529,0.2,208.01,207.98,0.28432314]
[1756988526714,0.2,208.01,208.0,6.95819405]
[1756988527025,0.03,208.03,208.0,7.61819405]
[1756988527334,0.03,208.03,208.02,6.95819405]
[1756988527817,0.03,208.03,208.02,7.61819405]
[1756988528341,0.03,208.05,208.03,4.80699899]
[1756988528509,0.03,208.05,208.04,45.33387091]
[1756988528830,0.03,208.05,208.04,45.99387091]
[1756988529226,0.03,208.05,208.04,39.32]
[1756988529417,0.03,208.05,208.04,45.99387091]
[1756988529618,0.03,208.05,208.04,46.03387091]
[1756988530223,0.03,208.05,208.04,46.15387091]
[1756988530432,0.03,208.05,208.04,43.64676792]
[1756988530739,0.03,208.05,208.04,50.32063883]
[1756988531533,0.03,208.05,208.04,50.60496197]
[1756988532546,0.68,208.05,208.02,4.80699955]
[1756988532827,0.65,208.04,208.03,38.82]
[1756988533224,0.65,208.04,208.03,45.49387091]
[1756988533535,0.03,208.05,208.03,54.25756456]
[1756988533710,0.68,208.05,208.03,54.25756456]
[1756988533910,0.03,208.05,208.04,10.63067886]
[1756988534119,0.68,208.05,208.04,10.63067886]
[1756988534832,0.03,208.05,208.04,15.43744678]
[1756988535218,0.03,208.05,208.04,16.44176992]
[1756988535731,0.03,208.05,208.04,15.72176992]
[1756988535928,0.03,208.05,208.04,16.44176992]
[1756988536129,0.03,208.05,208.04,55.40176992]
[1756988537323,0.03,208.05,208.04,15.43744678]
[1756988537510,0.68,208.05,208.03,38.96]
[1756988537710,0.03,208.05,208.04,10.63067886]
[1756988537911,0.03,208.05,208.04,11.35067886]
[1756988538129,0.03,208.05,208.04,11.635002]
[1756988538632,0.03,208.05,208.04,15.72176992]
[1756988538836,0.03,208.05,208.04,16.44176992]
[1756988539836,0.03,208.05,208.04,42.44176992]
[1756988540136,1e-08,208.08,208.05,0.28432314]
[1756988540345,1e-08,208.08,208.07,10.915002]
[1756988540834,1e-08,208.08,208.07,30.03667088]
[1756988541027,1e-08,208.08,208.07,16.44107687]
[1756988541537,1e-08,208.08,208.07,15.43675373]
[1756988541740,1e-08,208.08,208.07,54.45675373]
[1756988543617,1e-08,208.08,208.07,55.46107687]
[1756988544035,1e-08,208.11,208.08,0.28432314]
[1756988544239,1e-08,208.11,208.1,10.915002]
[1756988544619,1e-08,208.11,208.1,11.635002]
[1756988545016,1e-08,208.11,208.1,16.44038402]
[1756988545218,1e-08,208.11,208.1,15.72038402]
[1756988545719,0.65,208.2,208.12,0.28432314]
[1756988545920,0.65,208.2,208.13,49.59067886]
[1756988546123,0.65,208.2,208.13,50.31067886]
[1756988547216,0.65,208.2,208.13,55.11536823]
[1756988548841,0.65,208.2,208.13,55.39969137]
[1756988549348,0.65,208.23,208.14,0.28432314]
[1756988549530,20.0,208.22,208.19,10.63067886]
[1756988549730,0.65,208.21,208.2,38.92]
[1756988550035,20.65,208.24,208.2,49.55067886]
[1756988550441,0.65,208.23,208.2,49.55067886]
[1756988550956,0.65,208.23,208.21,4.80284328]
[1756988551162,0.65,208.22,208.21,38.88]
[1756988551524,0.65,208.22,208.17,4.80376615]
[1756988551858,0.65,208.21,208.18,38.9]
[1756988552044,0.65,208.2,208.18,38.9]
[1756988552245,0.65,208.19,208.17,4.80376615]
[1756988552468,11.28067886,208.18,208.12,4.80492023]
[1756988552651,10.63067886,208.16,208.13,38.9]
[1756988552955,0.65,208.15,208.13,38.9]
[1756988553152,0.65,208.15,208.13,43.70456307]
[1756988553540,11.28067886,208.17,208.13,43.70456307]
[1756988553734,0.65,208.16,208.13,43.70456307]
[1756988554430,20.0,208.18,208.13,54.33524193]
[1756988554653,0.65,208.19,208.15,10.63067886]
[1756988554969,0.65,208.19,208.16,38.96]
[1756988555741,20.0,208.17,208.13,4.80456307]
[1756988555944,0.65,208.16,208.14,38.96]
[1756988557236,30.63067886,208.17,208.15,4.80422772]
[1756988557556,11.28067886,208.18,208.16,38.92]
[1756988557726,20.0,208.19,208.15,4.80422772]
[1756988558055,0.65,208.2,208.15,4.80422772]
[1756988558056,0.65,208.2,208.16,38.9]
[1756988558355,30.63067886,208.21,208.16,38.9]
[1756988558552,31.28067886,208.21,208.16,49.53067886]
[1756988559056,0.65,208.2,208.16,49.53067886]
[1756988559254,20.03,208.18,208.12,12.13186823]
[1756988559562,0.03,208.18,208.14,10.63067886]
[1756988559757,0.03,208.18,208.14,11.35067886]